Workbook

Sheet Social Media Report
B1: SOCIAL MEDIA REPORT
F2: REPORT COVERAGE DATES | I2: THROUGH
B4: R E A C H
B5: =SUM('Report Data'!I8:I1004) -> 6258 | C5: TOTAL REACH | D5: =COUNT('Report Data'!B8:B1004) -> 10 | E5: POSTS THIS WEEK | F5: =AVERAGE('Report Data'!D8:D1004) -> 81.9 | G5: AVERAGE RETWEETS PER POST | I5: =SUM('Report Data'!E8:E1004) -> 1975 | J5: LIKES
B6: =(SUM('Report Data'!H2:H1004)/30)*7 -> 2333.333333 | C6: typical | D6: ='Report Data'!S4*7 -> 2.333333333 | E6: typical week | F6: =AVERAGE('Report Data'!L8:L1004) -> 81.9 | G6: typical | I6: =(SUM('Report Data'!M8:M1004)/30)*7 -> 460.8333333 | J6: typical
D7: =SUM('Report Data'!D8:D1004) -> 819 | E7: TOTAL RETWEETS | F7: =AVERAGE('Report Data'!I8:I1004) -> 25.43902439 | G7: AVERAGE REACH PER POST | I7: =SUM('Report Data'!F8:F1004) -> 690 | J7: MENTIONS
D8: =(SUM('Report Data'!D2:D1004)/30)*7 -> 191.1 | E8: typical week | F8: =AVERAGE('Report Data'!Q8:Q1004) -> 625.8 | G8: typical | I8: =(SUM('Report Data'!N2:N1004)/30)*7 -> 161 | J8: typical
B10: TOP POSTS – LAST WEEK
C11: DATE OF POST | D11: POST CONTENT | E11: RETWEETS | F11: LIKES | G11: MENTIONS | H11: CLICKS | I11: POTENTIAL | J11: ENGAGEMENT
B12: TOP REACH
B13: TOP RESHARE
B15: TOP POSTS – LAST MONTH
C16: DATE OF POST | D16: POST CONTENT | E16: RETWEETS | F16: LIKES | G16: MENTIONS | H16: CLICKS | I16: POTENTIAL | J16: ENGAGEMENT
B17: TOP REACH
B18: TOP RESHARE
B20: TOTAL ENGAGEMENT
B21: =AVERAGE('Report Data'!I8:I1004) -> 25.43902439 | C21: AVERAGE ENGAGEMENT PER POST
B22: ='Report Data'!Y4*7 -> 4382.933333 | C22: typical week
B24: TOP 5 POSTS
B25: DATE OF POST | C25: POST CONTENT | D25: RETWEETS | E25: LIKES | F25: MENTIONS | G25: CLICKS | H25: POTENTIAL | I25: ENGAGEMENT
B32: TOTAL CLICKS
B33: =AVERAGE('Report Data'!G8:G1004) -> 277.4 | C33: AVERAGE CLICKS PER POST
B34: ='Report Data'!W4*7 -> 1941.8 | C34: typical week
B36: TOP 3 POSTS
B37: DATE OF POST | C37: POST CONTENT | D37: RETWEETS | E37: LIKES | F37: MENTIONS | G37: CLICKS | H37: POTENTIAL | I37: ENGAGEMENT
C42: CLICK HERE TO CONTACT SMARTSHEET AND LEARN MORE ABOUT SIGHTS

Sheet Report Data
S2: 30 DAY BENCHMARKS
B3: SOCIAL MEDIA REPORT DATA | S3: POSTS PER DAY | T3: RETWEETS PER POST | U3: FAVORITES PER POST | V3: MENTIONS PER POST | W3: CLICKS PER POST | X3: POTENTIAL PER POST | Y3: ENGAGEMENT PER POST
S4: =COUNT(B:B)/30 -> 0.3333333333 | T4: =AVERAGE(D8:D1005) -> 81.9 | U4: =AVERAGE(E8:E1005) -> 197.5 | V4: =AVERAGE(F8:F1005) -> 69 | W4: =AVERAGE(G8:G1005) -> 277.4 | X4: =AVERAGE(H8:H1005) -> 1000 | Y4: =SUM(S4:W4) -> 626.1333333
B6: THIS WEEK | J6: 1 WEEK AGO | R6: 2 WEEKS AGO
B7: DATE OF POST | C7: POST CONTENT | D7: RETWEETS | E7: LIKES | F7: MENTIONS | G7: CLICKS | H7: POTENTIAL | I7: ENGAGEMENT | J7: DATE OF POST | K7: POST CONTENT | L7: RETWEETS | M7: LIKES | N7: MENTIONS | O7: CLICKS | P7: POTENTIAL | Q7: ENGAGEMENT | R7: DATE OF POST | S7: POST CONTENT | T7: RETWEETS | U7: LIKES | V7: MENTIONS | W7: CLICKS | X7: POTENTIAL | Y7: ENGAGEMENT
B8: 2018-08-30 | C8: CONTENT 1 | D8: 89 | E8: 22 | F8: 100 | G8: 300 | H8: 1000 | I8: =SUM(D8:G8) -> 511 | J8: 2018-08-23 | K8: CONTENT 22 | L8: 89 | M8: 22 | N8: 100 | O8: 300 | P8: 1000 | Q8: 511
B9: 2018-08-31 | C9: CONTENT 2 | D9: 150 | E9: 200 | F9: 150 | G9: 500 | H9: 1000 | I9: =SUM(D9:G9) -> 1000 | J9: 2018-08-23 | K9: CONTENT 25 | L9: 150 | M9: 200 | N9: 150 | O9: 500 | P9: 1000 | Q9: 1000
B10: 2018-09-01 | C10: CONTENT 3 | D10: 89 | E10: 300 | F10: 88 | G10: 150 | H10: 1000 | I10: 627 | J10: 2018-08-24 | K10: CONTENT 36 | L10: 89 | M10: 300 | N10: 88 | O10: 150 | P10: 1000 | Q10: 627
B11: 2018-09-02 | C11: CONTENT 5 | D11: 95 | E11: 140 | F11: 55 | G11: 150 | H11: 1000 | I11: 440 | J11: 2018-08-25 | K11: CONTENT 56 | L11: 95 | M11: 140 | N11: 55 | O11: 150 | P11: 1000 | Q11: 440
B12: 2018-09-02 | C12: CONTENT 4 | D12: 55 | E12: 55 | F12: 77 | G12: 150 | H12: 1000 | I12: 337 | J12: 2018-08-25 | K12: CONTENT 44 | L12: 55 | M12: 55 | N12: 77 | O12: 150 | P12: 1000 | Q12: 337
B13: 2018-09-03 | C13: CONTENT 8 | D13: 77 | E13: 99 | F13: 66 | G13: 200 | H13: 1000 | I13: 442 | J13: 2018-08-25 | K13: CONTENT 83 | L13: 77 | M13: 99 | N13: 66 | O13: 200 | P13: 1000 | Q13: 442
B14: 2018-09-03 | C14: CONTENT 7 | D14: 86 | E14: 156 | F14: 55 | G14: 357 | H14: 1000 | I14: 654 | J14: 2018-08-27 | K14: CONTENT 73 | L14: 86 | M14: 156 | N14: 55 | O14: 357 | P14: 1000 | Q14: 654
B15: 2018-09-04 | C15: CONTENT 6 | D15: 45 | E15: 577 | F15: 44 | G15: 597 | H15: 1000 | I15: 1263 | J15: 2018-08-28 | K15: CONTENT 62 | L15: 45 | M15: 577 | N15: 44 | O15: 597 | P15: 1000 | Q15: 1263
B16: 2018-09-05 | C16: CONTENT 11 | D16: 22 | E16: 215 | F16: 33 | G16: 215 | H16: 1000 | I16: 485 | J16: 2018-08-29 | K16: CONTENT 17 | L16: 22 | M16: 215 | N16: 33 | O16: 215 | P16: 1000 | Q16: 485
B17: 2018-09-05 | C17: CONTENT 19 | D17: 111 | E17: 211 | F17: 22 | G17: 155 | H17: 1000 | I17: 499 | J17: 2018-08-29 | K17: CONTENT 36 | L17: 111 | M17: 211 | N17: 22 | O17: 155 | P17: 1000 | Q17: 499
I18: 0
I19: 0
I20: 0
I21: 0
I22: 0
I23: 0
I24: 0
I25: 0
I26: 0
I27: 0
I28: 0
I29: 0
I30: 0
I31: 0
I32: 0
I33: 0
I34: 0
I35: 0
I36: 0
I37: 0
I38: 0
I39: 0
I40: 0
I41: 0
I42: 0
I43: 0
I44: 0
I45: 0
I46: 0
I47: 0
I48: 0
I49: 0
I50: 0
I51: 0
I52: 0
I53: 0
I54: 0
I55: 0
I56: 0
I57: 0
I58: 0
I59: 0
I60: 0
I61: 0
I62: 0
I63: 0
I64: 0
I65: 0
I66: 0
I67: 0
I68: 0
I69: 0
I70: 0
I71: 0
I72: 0
I73: =SUM(D73:G73) -> 0
I74: 0
I75: 0
I76: 0
I77: 0
I78: 0
I79: 0
I80: 0
I81: 0
I82: 0
I83: 0
I84: 0
I85: 0
I86: 0
I87: 0
I88: 0
I89: 0
I90: 0
I91: 0
I92: 0
I93: 0
I94: 0
I95: 0
I96: 0
I97: 0
I98: 0
I99: 0
I100: 0
I101: 0
I102: 0
I103: 0
I104: 0
I105: 0
I106: 0
I107: 0
I108: 0
I109: 0
I110: 0
I111: 0
I112: 0
I113: 0
I114: 0
I115: 0
I116: 0
I117: 0
I118: 0
I119: 0
I120: 0
I121: 0
I122: 0
I123: 0
I124: 0
I125: 0
I126: 0
I127: 0
I128: 0
I129: 0
I130: 0
I131: 0
I132: 0
I133: 0
I134: 0
I135: 0
I136: 0
I137: =SUM(D137:G137) -> 0
I138: 0
I139: 0
I140: 0
I141: 0
I142: 0
I143: 0
I144: 0
I145: 0
I146: 0
I147: 0
I148: 0
I149: 0
I150: 0
I151: 0
I152: 0
I153: 0
I154: 0
I155: 0
I156: 0
I157: 0
I158: 0
I159: 0
I160: 0
I161: 0
I162: 0
I163: 0
I164: 0
I165: 0
I166: 0
I167: 0
I168: 0
I169: 0
I170: 0
I171: 0
I172: 0
I173: 0
I174: 0
I175: 0
I176: 0
I177: 0
I178: 0
I179: 0
I180: 0
I181: 0
I182: 0
I183: 0
I184: 0
I185: 0
I186: 0
I187: 0
I188: 0
I189: 0
I190: 0
I191: 0
I192: 0
I193: 0
I194: 0
I195: 0
I196: 0
I197: 0
I198: 0
I199: 0
I200: 0
I201: =SUM(D201:G201) -> 0
I202: 0
... 51 more rows
